[Event "Titled Tuesday Blitz August 24 2021"]
[White "Laurusas, Tomas"]
[Black "Sadhwani, Raunak"]
[WhiteFideId "12803731"]
[BlackFideId "35093487"]
[WhiteElo "2542"]
[BlackElo "2514"]
[Result "0-1"]
[Round "03"]
[TimeControl "180+1"]
[Date "2021.08.24"]
[WhiteClock "0:00:05"]
[BlackClock "0:00:11"]

1. d4 {[%clk 0:03:00]}  d6 {[%clk 0:03:00]} 2. Nf3 {[%clk 0:03:00]}  Bg4 {[%clk 0:03:00]} 3. Nbd2 {[%clk 0:03:00]}  Nd7 {[%clk 0:02:59]} 4. g3 {[%clk 0:02:59]}  e5 {[%clk 0:02:59]} 5. Bg2 {[%clk 0:03:00]}  Ngf6 {[%clk 0:02:54]} 6. O-O {[%clk 0:03:00]}  e4 {[%clk 0:02:53]} 7. Ng5 {[%clk 0:02:46]}  d5 {[%clk 0:02:53]} 8. f3 {[%clk 0:02:46]}  exf3 {[%clk 0:02:54]} 9. exf3 {[%clk 0:02:47]}  Bh5 {[%clk 0:02:52]} 10. Nh3 {[%clk 0:02:43]}  Be7 {[%clk 0:02:44]} 11. Nf4 {[%clk 0:02:42]}  Bg6 {[%clk 0:02:44]} 12. c3 {[%clk 0:02:18]}  O-O {[%clk 0:02:44]} 13. Re1 {[%clk 0:02:17]}  c5 {[%clk 0:02:44]} 14. Nxg6 {[%clk 0:02:16]}  hxg6 {[%clk 0:02:44]} 15. dxc5 {[%clk 0:02:16]}  Nxc5 {[%clk 0:02:39]} 16. Nb3 {[%clk 0:02:15]}  Nxb3 {[%clk 0:02:35]} 17. axb3 {[%clk 0:02:12]}  Bc5+ {[%clk 0:02:36]} 18. Kh1 {[%clk 0:02:00]}  a5 {[%clk 0:02:36]} 19. Be3 {[%clk 0:01:55]}  Bxe3 {[%clk 0:02:30]} 20. Rxe3 {[%clk 0:01:56]}  Qb6 {[%clk 0:02:31]} 21. Re1 {[%clk 0:01:48]}  Rfe8 {[%clk 0:02:31]} 22. Qc2 {[%clk 0:01:48]}  d4 {[%clk 0:02:18]} 23. Rad1 {[%clk 0:01:41]}  dxc3 {[%clk 0:02:18]} 24. bxc3 {[%clk 0:01:42]}  Rac8 {[%clk 0:02:15]} 25. c4 {[%clk 0:01:41]}  Qc5 {[%clk 0:02:12]} 26. Bh3 {[%clk 0:01:33]}  Rb8 {[%clk 0:02:06]} 27. Bf1 {[%clk 0:01:25]}  b5 {[%clk 0:02:00]} 28. Rxe8+ {[%clk 0:01:24]}  Rxe8 {[%clk 0:02:00]} 29. Qd2 {[%clk 0:01:17]}  b4 {[%clk 0:01:51]} 30. Ra1 {[%clk 0:01:14]}  Kh7 {[%clk 0:01:41]} 31. Kg2 {[%clk 0:01:13]}  Ra8 {[%clk 0:01:26]} 32. Qf2 {[%clk 0:01:12]}  Nd7 {[%clk 0:01:26]} 33. Qd2 {[%clk 0:01:08]}  Qc7 {[%clk 0:01:26]} 34. Qd5 {[%clk 0:01:03]}  Ra6 {[%clk 0:01:07]} 35. Qxf7 {[%clk 0:01:01]}  Qe5 {[%clk 0:01:06]} 36. Rd1 {[%clk 0:00:55]}  Qb2+ {[%clk 0:01:04]} 37. Kh1 {[%clk 0:00:53]}  Ne5 {[%clk 0:01:04]} 38. Qd5 {[%clk 0:00:50]}  Qxb3 {[%clk 0:00:58]} 39. c5 {[%clk 0:00:44]}  Qxd5 {[%clk 0:00:54]} 40. Rxd5 {[%clk 0:00:45]}  Re6 {[%clk 0:00:54]} 41. f4 {[%clk 0:00:27]}  Ng4 {[%clk 0:00:54]} 42. Bb5 {[%clk 0:00:20]}  Re1+ {[%clk 0:00:54]} 43. Kg2 {[%clk 0:00:20]}  Rc1 {[%clk 0:00:55]} 44. Kf3 {[%clk 0:00:17]}  Nf6 {[%clk 0:00:51]} 45. Rg5 {[%clk 0:00:17]}  b3 {[%clk 0:00:51]} 46. Bd3 {[%clk 0:00:17]}  b2 {[%clk 0:00:48]} 47. Bxg6+ {[%clk 0:00:17]}  Kg8 {[%clk 0:00:49]} 48. c6 {[%clk 0:00:14]}  b1=Q {[%clk 0:00:39]} 49. Bxb1 {[%clk 0:00:12]}  Rxb1 {[%clk 0:00:40]} 50. Rxa5 {[%clk 0:00:12]}  Rb3+ {[%clk 0:00:40]} 51. Kg2 {[%clk 0:00:12]}  Rc3 {[%clk 0:00:41]} 52. Ra6 {[%clk 0:00:12]}  Kf7 {[%clk 0:00:41]} 53. Ra7+ {[%clk 0:00:10]}  Kg6 {[%clk 0:00:40]} 54. Ra6 {[%clk 0:00:10]}  Kh7 {[%clk 0:00:38]} 55. Rb6 {[%clk 0:00:09]}  Nd5 {[%clk 0:00:38]} 56. Ra6 {[%clk 0:00:09]}  Nb4 {[%clk 0:00:38]} 57. Ra4 {[%clk 0:00:09]}  Nxc6 {[%clk 0:00:38]} 58. Ra2 {[%clk 0:00:10]}  Ne7 {[%clk 0:00:38]} 59. Re2 {[%clk 0:00:10]}  Nd5 {[%clk 0:00:38]} 60. Kf2 {[%clk 0:00:09]}  Nf6 {[%clk 0:00:38]} 61. Rb2 {[%clk 0:00:08]}  Kg6 {[%clk 0:00:36]} 62. Kg2 {[%clk 0:00:08]}  Kf5 {[%clk 0:00:34]} 63. Rb5+ {[%clk 0:00:09]}  Kg6 {[%clk 0:00:35]} 64. Rb2 {[%clk 0:00:09]}  Ra3 {[%clk 0:00:33]} 65. Rc2 {[%clk 0:00:09]}  Ne4 {[%clk 0:00:32]} 66. Rb2 {[%clk 0:00:09]}  Rc3 {[%clk 0:00:28]} 67. Ra2 {[%clk 0:00:09]}  Rd3 {[%clk 0:00:21]} 68. Ra6+ {[%clk 0:00:09]}  Nd6 {[%clk 0:00:21]} 69. h3 {[%clk 0:00:09]}  Kf5 {[%clk 0:00:20]} 70. Ra5+ {[%clk 0:00:09]}  Kf6 {[%clk 0:00:20]} 71. g4 {[%clk 0:00:09]}  Nc4 {[%clk 0:00:20]} 72. Ra6+ {[%clk 0:00:09]}  Kf7 {[%clk 0:00:21]} 73. Ra7+ {[%clk 0:00:10]}  Kg8 {[%clk 0:00:21]} 74. Rc7 {[%clk 0:00:09]}  Ne3+ {[%clk 0:00:21]} 75. Kf3 {[%clk 0:00:09]}  Nd5+ {[%clk 0:00:17]} 76. Ke4 {[%clk 0:00:10]}  Rd1 {[%clk 0:00:17]} 77. Rc8+ {[%clk 0:00:09]}  Kh7 {[%clk 0:00:18]} 78. f5 {[%clk 0:00:09]}  Nf6+ {[%clk 0:00:18]} 79. Kf4 {[%clk 0:00:09]}  Rf1+ {[%clk 0:00:18]} 80. Ke3 {[%clk 0:00:09]}  Rh1 {[%clk 0:00:19]} 81. g5 {[%clk 0:00:09]}  Rxh3+ {[%clk 0:00:19]} 82. Kf4 {[%clk 0:00:09]}  Rh4+ {[%clk 0:00:15]} 83. Kf3 {[%clk 0:00:09]}  Nd5 {[%clk 0:00:14]} 84. f6 {[%clk 0:00:06]}  Rf4+ {[%clk 0:00:12]} 85. Kg3 {[%clk 0:00:06]}  gxf6 {[%clk 0:00:11]} 86. gxf6 {[%clk 0:00:06]}  Rxf6 {[%clk 0:00:11]} 87. Rd8 {[%clk 0:00:07]}  Ne7 {[%clk 0:00:10]} 88. Rd4 {[%clk 0:00:06]}  Nf5+ {[%clk 0:00:10]} 89. Kf4 {[%clk 0:00:05]}  Nxd4+ {[%clk 0:00:11]} 0-1


[Site "https://www.chess.com"]

[Event "Titled Tuesday Blitz August 24 2021"]
[White "Maghsoodloo, Parham"]
[Black "Krysa, Leandro"]
[WhiteFideId "12539929"]
[BlackFideId "116807"]
[WhiteElo "2601"]
[BlackElo "2490"]
[Result "1-0"]
[Round "03"]
[TimeControl "180+1"]
[Date "2021.08.24"]
[WhiteClock "0:00:36"]
[BlackClock "0:00:03"]

1. c4 {[%clk 0:03:00]}  c5 {[%clk 0:02:59]} 2. g3 {[%clk 0:02:59]}  Nf6 {[%clk 0:02:58]} 3. Bg2 {[%clk 0:02:59]}  g6 {[%clk 0:02:55]} 4. Nc3 {[%clk 0:02:56]}  Bg7 {[%clk 0:02:54]} 5. a3 {[%clk 0:02:53]}  O-O {[%clk 0:02:52]} 6. Rb1 {[%clk 0:02:53]}  e6 {[%clk 0:02:49]} 7. b4 {[%clk 0:02:48]}  d5 {[%clk 0:02:43]} 8. bxc5 {[%clk 0:02:44]}  d4 {[%clk 0:02:37]} 9. Nb5 {[%clk 0:02:43]}  Nc6 {[%clk 0:02:36]} 10. a4 {[%clk 0:02:39]}  Rb8 {[%clk 0:02:27]} 11. Nd6 {[%clk 0:02:30]}  Bd7 {[%clk 0:02:13]} 12. Nf3 {[%clk 0:02:26]}  e5 {[%clk 0:02:00]} 13. O-O {[%clk 0:02:25]}  Qc7 {[%clk 0:01:45]} 14. d3 {[%clk 0:02:22]}  h6 {[%clk 0:01:32]} 15. Ba3 {[%clk 0:02:04]}  Kh7 {[%clk 0:01:29]} 16. Nd2 {[%clk 0:01:54]}  Bg4 {[%clk 0:01:26]} 17. h3 {[%clk 0:01:54]}  Be6 {[%clk 0:01:25]} 18. Rb5 {[%clk 0:01:51]}  Nd7 {[%clk 0:00:59]} 19. Qb3 {[%clk 0:01:44]}  Na5 {[%clk 0:00:51]} 20. Qb4 {[%clk 0:01:43]}  b6 {[%clk 0:00:35]} 21. cxb6 {[%clk 0:01:41]}  axb6 {[%clk 0:00:34]} 22. N6e4 {[%clk 0:01:25]}  Rfd8 {[%clk 0:00:31]} 23. c5 {[%clk 0:01:14]}  Nc6 {[%clk 0:00:19]} 24. cxb6 {[%clk 0:01:14]}  Nxb6 {[%clk 0:00:18]} 25. Qb2 {[%clk 0:01:09]}  Nxa4 {[%clk 0:00:18]} 26. Qb1 {[%clk 0:01:09]}  Nc3 {[%clk 0:00:16]} 27. Rxb8 {[%clk 0:01:06]}  Nxb1 {[%clk 0:00:14]} 28. Rbxb1 {[%clk 0:01:04]}  Bd5 {[%clk 0:00:11]} 29. Rfc1 {[%clk 0:01:04]}  Qa7 {[%clk 0:00:11]} 30. Bc5 {[%clk 0:01:02]}  Qa8 {[%clk 0:00:11]} 31. Nc4 {[%clk 0:01:01]}  f5 {[%clk 0:00:08]} 32. Nb6 {[%clk 0:01:00]}  Qa2 {[%clk 0:00:05]} 33. Nxd5 {[%clk 0:00:53]}  fxe4 {[%clk 0:00:04]} 34. Ra1 {[%clk 0:00:43]}  Qxe2 {[%clk 0:00:03]} 35. Bxe4 {[%clk 0:00:43]}  Rf8 {[%clk 0:00:01]} 36. Rf1 {[%clk 0:00:38]}  Qh5 {[%clk 0:00:02]} 37. Bxf8 {[%clk 0:00:37]}  Nd8 {[%clk 0:00:03]} 38. Bxg7 {[%clk 0:00:36]} 1-0


[Site "https://www.chess.com"]

[Event "Titled Tuesday Blitz August 24 2021"]
[White "Maly, Alexey"]
[Black "Eswaran, Ashritha"]
[WhiteFideId "14103184"]
[BlackFideId "2080788"]
[WhiteElo "2250"]
[BlackElo "2434"]
[Result "1/2-1/2"]
[Round "03"]
[TimeControl "180+1"]
[Date "2021.08.24"]
[WhiteClock "0:02:51"]
[BlackClock "0:02:56"]

1. d4 {[%clk 0:03:00]}  Nf6 {[%clk 0:02:59]} 2. c4 {[%clk 0:03:01]}  e6 {[%clk 0:02:59]} 3. Nf3 {[%clk 0:03:01]}  c5 {[%clk 0:02:58]} 4. d5 {[%clk 0:03:00]}  exd5 {[%clk 0:02:59]} 5. cxd5 {[%clk 0:03:01]}  d6 {[%clk 0:02:59]} 6. Nc3 {[%clk 0:03:01]}  g6 {[%clk 0:03:00]} 7. Nd2 {[%clk 0:03:00]}  Bg7 {[%clk 0:02:59]} 8. g3 {[%clk 0:03:00]}  O-O {[%clk 0:03:00]} 9. Bg2 {[%clk 0:03:00]}  Na6 {[%clk 0:02:59]} 10. O-O {[%clk 0:03:00]}  Nc7 {[%clk 0:02:59]} 11. a4 {[%clk 0:03:00]}  Re8 {[%clk 0:03:00]} 12. Nc4 {[%clk 0:03:00]}  b6 {[%clk 0:02:59]} 13. h3 {[%clk 0:02:58]}  Ba6 {[%clk 0:02:59]} 14. Qb3 {[%clk 0:02:58]}  Bxc4 {[%clk 0:02:59]} 15. Qxc4 {[%clk 0:02:58]}  Nd7 {[%clk 0:02:57]} 16. e4 {[%clk 0:02:54]}  Ne5 {[%clk 0:02:57]} 17. Qe2 {[%clk 0:02:54]}  f5 {[%clk 0:02:56]} 18. Bd2 {[%clk 0:02:51]} 1/2-1/2


[Site "https://www.chess.com"]

[Event "Titled Tuesday Blitz August 24 2021"]
[White "Melikhov, Evgeny V."]
[Black "Materia, Marco"]
[WhiteFideId "4122046"]
[BlackFideId "45150451"]
[WhiteElo "1957"]
[BlackElo "2678"]
[Result "0-1"]
[Round "03"]
[TimeControl "180+1"]
[Date "2021.08.24"]
[WhiteClock "0:00:58"]
[BlackClock "0:01:37"]

1. d4 {[%clk 0:03:00]}  Nf6 {[%clk 0:02:59]} 2. c4 {[%clk 0:03:00]}  e6 {[%clk 0:02:59]} 3. Nc3 {[%clk 0:03:00]}  Bb4 {[%clk 0:02:59]} 4. Qc2 {[%clk 0:03:01]}  d5 {[%clk 0:02:58]} 5. cxd5 {[%clk 0:03:00]}  exd5 {[%clk 0:02:58]} 6. Bg5 {[%clk 0:03:00]}  h6 {[%clk 0:02:58]} 7. Bxf6 {[%clk 0:03:00]}  Qxf6 {[%clk 0:02:58]} 8. a3 {[%clk 0:03:00]}  Bxc3+ {[%clk 0:02:58]} 9. Qxc3 {[%clk 0:03:01]}  O-O {[%clk 0:02:58]} 10. e3 {[%clk 0:02:58]}  Bf5 {[%clk 0:02:57]} 11. Nf3 {[%clk 0:02:58]}  c6 {[%clk 0:02:51]} 12. Be2 {[%clk 0:02:58]}  Nd7 {[%clk 0:02:51]} 13. O-O {[%clk 0:02:58]}  Qe6 {[%clk 0:02:47]} 14. Rfc1 {[%clk 0:02:49]}  Nf6 {[%clk 0:02:45]} 15. Bd3 {[%clk 0:02:40]}  Ne4 {[%clk 0:02:42]} 16. Bxe4 {[%clk 0:02:40]}  Bxe4 {[%clk 0:02:42]} 17. Nd2 {[%clk 0:02:40]}  Bg6 {[%clk 0:02:42]} 18. h3 {[%clk 0:02:33]}  Rfe8 {[%clk 0:02:40]} 19. b4 {[%clk 0:02:28]}  Qf6 {[%clk 0:02:31]} 20. Ra2 {[%clk 0:02:22]}  Re6 {[%clk 0:02:27]} 21. a4 {[%clk 0:02:11]}  a6 {[%clk 0:02:27]} 22. Nf3 {[%clk 0:01:56]}  Rae8 {[%clk 0:02:17]} 23. b5 {[%clk 0:01:53]}  axb5 {[%clk 0:02:14]} 24. axb5 {[%clk 0:01:53]}  Be4 {[%clk 0:02:10]} 25. Ne5 {[%clk 0:01:52]}  cxb5 {[%clk 0:02:04]} 26. f3 {[%clk 0:01:40]}  Bf5 {[%clk 0:02:03]} 27. Qc5 {[%clk 0:01:23]}  Qg5 {[%clk 0:01:59]} 28. Re1 {[%clk 0:01:22]}  f6 {[%clk 0:01:50]} 29. Ng4 {[%clk 0:01:13]}  h5 {[%clk 0:01:49]} 30. Nf2 {[%clk 0:01:12]}  Rxe3 {[%clk 0:01:47]} 31. Qxd5+ {[%clk 0:01:04]}  Be6 {[%clk 0:01:44]} 32. Rxe3 {[%clk 0:01:04]}  Qxd5 {[%clk 0:01:43]} 33. Rae2 {[%clk 0:01:01]}  Kf7 {[%clk 0:01:40]} 34. Nd3 {[%clk 0:01:00]}  Qxd4 {[%clk 0:01:40]} 35. Kh2 {[%clk 0:00:59]}  b4 {[%clk 0:01:37]} 36. Nf4 {[%clk 0:00:58]}  Qxf4+ {[%clk 0:01:37]} 0-1


[Site "https://www.chess.com"]

[Event "Titled Tuesday Blitz August 24 2021"]
[White "Mitrabha, Guha"]
[Black "Zhigalko, Sergei"]
[WhiteFideId "5057000"]
[BlackFideId "13502956"]
[WhiteElo "2334"]
[BlackElo "2662"]
[Result "0-1"]
[Round "03"]
[TimeControl "180+1"]
[Date "2021.08.24"]
[WhiteClock "0:00:13"]
[BlackClock "0:00:09"]

1. c4 {[%clk 0:02:28]}  e5 {[%clk 0:02:59]} 2. g3 {[%clk 0:02:28]}  Nf6 {[%clk 0:02:59]} 3. Bg2 {[%clk 0:02:29]}  c6 {[%clk 0:03:00]} 4. Nf3 {[%clk 0:02:28]}  d6 {[%clk 0:02:59]} 5. Nc3 {[%clk 0:02:27]}  Be7 {[%clk 0:03:00]} 6. O-O {[%clk 0:02:28]}  O-O {[%clk 0:03:00]} 7. d4 {[%clk 0:02:29]}  e4 {[%clk 0:03:00]} 8. Ng5 {[%clk 0:02:28]}  d5 {[%clk 0:03:00]} 9. cxd5 {[%clk 0:02:29]}  cxd5 {[%clk 0:03:01]} 10. f3 {[%clk 0:02:30]}  h6 {[%clk 0:02:55]} 11. Nh3 {[%clk 0:02:29]}  exf3 {[%clk 0:02:51]} 12. exf3 {[%clk 0:02:28]}  Nc6 {[%clk 0:02:51]} 13. Be3 {[%clk 0:02:28]}  Re8 {[%clk 0:02:51]} 14. Re1 {[%clk 0:02:28]}  Bb4 {[%clk 0:02:47]} 15. Bf2 {[%clk 0:02:28]}  Bxc3 {[%clk 0:02:25]} 16. bxc3 {[%clk 0:02:26]}  Bf5 {[%clk 0:02:21]} 17. Nf4 {[%clk 0:02:25]}  Rc8 {[%clk 0:02:21]} 18. Rxe8+ {[%clk 0:02:23]}  Qxe8 {[%clk 0:02:21]} 19. Qb3 {[%clk 0:02:21]}  Na5 {[%clk 0:02:19]} 20. Qa3 {[%clk 0:02:21]}  b6 {[%clk 0:02:19]} 21. g4 {[%clk 0:02:14]}  Bh7 {[%clk 0:02:12]} 22. h4 {[%clk 0:02:13]}  Qd8 {[%clk 0:01:27]} 23. Re1 {[%clk 0:02:06]}  Qc7 {[%clk 0:01:24]} 24. Bg3 {[%clk 0:02:03]}  Re8 {[%clk 0:00:46]} 25. Rxe8+ {[%clk 0:01:46]}  Nxe8 {[%clk 0:00:47]} 26. Kh2 {[%clk 0:01:46]}  Qd7 {[%clk 0:00:35]} 27. Bh3 {[%clk 0:01:40]}  g5 {[%clk 0:00:32]} 28. hxg5 {[%clk 0:01:38]}  hxg5 {[%clk 0:00:33]} 29. Nh5 {[%clk 0:01:38]}  Bg6 {[%clk 0:00:30]} 30. Qc1 {[%clk 0:01:37]}  Qe7 {[%clk 0:00:28]} 31. Bg2 {[%clk 0:01:32]}  Nc4 {[%clk 0:00:26]} 32. f4 {[%clk 0:01:31]}  Bxh5 {[%clk 0:00:25]} 33. gxh5 {[%clk 0:01:32]}  Ne3 {[%clk 0:00:25]} 34. Qd2 {[%clk 0:00:29]}  gxf4 {[%clk 0:00:24]} 35. Bf2 {[%clk 0:00:25]}  Nf6 {[%clk 0:00:22]} 36. Bf3 {[%clk 0:00:25]}  Nfg4+ {[%clk 0:00:21]} 37. Kh3 {[%clk 0:00:19]}  Qg5 {[%clk 0:00:19]} 38. Bxe3 {[%clk 0:00:14]}  Qxh5+ {[%clk 0:00:11]} 39. Kg2 {[%clk 0:00:14]}  Nxe3+ {[%clk 0:00:10]} 40. Kf2 {[%clk 0:00:12]}  Qh2+ {[%clk 0:00:09]} 41. Ke1 {[%clk 0:00:12]}  Qg1+ {[%clk 0:00:09]} 42. Ke2 {[%clk 0:00:13]}  Qf1# {[%clk 0:00:09]} 0-1


[Site "https://www.chess.com"]

[Event "Titled Tuesday Blitz August 24 2021"]
[White "Nesterov, Arseniy"]
[Black "Nazaretyan, Tigran"]
[WhiteFideId "24198455"]
[BlackFideId "24162345"]
[WhiteElo "2477"]
[BlackElo "2167"]
[Result "1-0"]
[Round "03"]
[TimeControl "180+1"]
[Date "2021.08.24"]
[WhiteClock "0:00:08"]
[BlackClock "0:00:15"]

1. d4 {[%clk 0:03:00]}  Nf6 {[%clk 0:02:56]} 2. c4 {[%clk 0:03:00]}  c5 {[%clk 0:02:56]} 3. d5 {[%clk 0:03:00]}  b5 {[%clk 0:02:56]} 4. Qc2 {[%clk 0:03:00]}  bxc4 {[%clk 0:02:45]} 5. e4 {[%clk 0:02:59]}  d6 {[%clk 0:02:45]} 6. Bxc4 {[%clk 0:02:58]}  g6 {[%clk 0:02:44]} 7. Nf3 {[%clk 0:02:58]}  Bg7 {[%clk 0:02:44]} 8. O-O {[%clk 0:02:58]}  O-O {[%clk 0:02:44]} 9. h3 {[%clk 0:02:56]}  a5 {[%clk 0:02:37]} 10. Bd2 {[%clk 0:02:53]}  Ba6 {[%clk 0:02:36]} 11. Bxa6 {[%clk 0:02:52]}  Nxa6 {[%clk 0:02:35]} 12. Bc3 {[%clk 0:02:52]}  Nb4 {[%clk 0:02:35]} 13. Qe2 {[%clk 0:02:52]}  Qb6 {[%clk 0:02:30]} 14. Nbd2 {[%clk 0:02:36]}  Qa6 {[%clk 0:02:30]} 15. Nc4 {[%clk 0:02:32]}  Qb5 {[%clk 0:01:52]} 16. a3 {[%clk 0:02:21]}  Na6 {[%clk 0:01:44]} 17. a4 {[%clk 0:02:10]}  Qb8 {[%clk 0:01:36]} 18. Nxa5 {[%clk 0:02:05]}  Nb4 {[%clk 0:01:34]} 19. Nc4 {[%clk 0:01:59]}  Qb7 {[%clk 0:01:29]} 20. Rfe1 {[%clk 0:01:48]}  Rfb8 {[%clk 0:01:28]} 21. a5 {[%clk 0:01:45]}  Qa6 {[%clk 0:01:27]} 22. Rad1 {[%clk 0:01:35]}  Na2 {[%clk 0:01:25]} 23. e5 {[%clk 0:01:27]}  Nxc3 {[%clk 0:01:24]} 24. bxc3 {[%clk 0:01:28]}  dxe5 {[%clk 0:01:19]} 25. Nfxe5 {[%clk 0:01:27]}  Rb3 {[%clk 0:01:06]} 26. Qc2 {[%clk 0:00:57]}  Rb7 {[%clk 0:00:53]} 27. d6 {[%clk 0:00:49]}  exd6 {[%clk 0:00:51]} 28. Rxd6 {[%clk 0:00:36]}  Qb5 {[%clk 0:00:50]} 29. Rb6 {[%clk 0:00:32]}  Rxb6 {[%clk 0:00:48]} 30. axb6 {[%clk 0:00:32]}  Nd5 {[%clk 0:00:44]} 31. Rb1 {[%clk 0:00:31]}  Qe8 {[%clk 0:00:43]} 32. b7 {[%clk 0:00:22]}  Rb8 {[%clk 0:00:42]} 33. Re1 {[%clk 0:00:17]}  f6 {[%clk 0:00:35]} 34. Nd3 {[%clk 0:00:11]}  Qd7 {[%clk 0:00:33]} 35. Rb1 {[%clk 0:00:05]}  Rxb7 {[%clk 0:00:32]} 36. Nxc5 {[%clk 0:00:06]}  Rxb1+ {[%clk 0:00:31]} 37. Qxb1 {[%clk 0:00:07]}  Qc6 {[%clk 0:00:29]} 38. Qb8+ {[%clk 0:00:04]}  Bf8 {[%clk 0:00:30]} 39. Ne4 {[%clk 0:00:02]}  Qxc4 {[%clk 0:00:28]} 40. f3 {[%clk 0:00:03]}  Qc6 {[%clk 0:00:22]} 41. Qb3 {[%clk 0:00:02]}  Qb6+ {[%clk 0:00:22]} 42. Qxb6 {[%clk 0:00:02]}  Nxb6 {[%clk 0:00:23]} 43. Nxf6+ {[%clk 0:00:03]}  Kg7 {[%clk 0:00:22]} 44. Ne4 {[%clk 0:00:04]}  h6 {[%clk 0:00:20]} 45. Kf2 {[%clk 0:00:04]}  Kf7 {[%clk 0:00:21]} 46. Ke3 {[%clk 0:00:04]}  Ke6 {[%clk 0:00:22]} 47. Kd3 {[%clk 0:00:05]}  Kd5 {[%clk 0:00:22]} 48. g3 {[%clk 0:00:05]}  Bg7 {[%clk 0:00:21]} 49. f4 {[%clk 0:00:03]}  Nc4 {[%clk 0:00:21]} 50. Nf2 {[%clk 0:00:03]}  Nb2+ {[%clk 0:00:21]} 51. Kc2 {[%clk 0:00:03]}  Na4 {[%clk 0:00:22]} 52. Ng4 {[%clk 0:00:03]}  Nxc3 {[%clk 0:00:21]} 53. Kd3 {[%clk 0:00:03]}  Ne4 {[%clk 0:00:21]} 54. Ne3+ {[%clk 0:00:03]}  Ke6 {[%clk 0:00:19]} 55. Kxe4 {[%clk 0:00:04]}  Bc3 {[%clk 0:00:17]} 56. g4 {[%clk 0:00:03]}  h5 {[%clk 0:00:17]} 57. gxh5 {[%clk 0:00:03]}  gxh5 {[%clk 0:00:17]} 58. f5+ {[%clk 0:00:03]}  Kf7 {[%clk 0:00:17]} 59. Nd5 {[%clk 0:00:04]}  Bb2 {[%clk 0:00:16]} 60. Nf4 {[%clk 0:00:04]}  h4 {[%clk 0:00:16]} 61. Nd5 {[%clk 0:00:04]}  Bc1 {[%clk 0:00:16]} 62. Kf3 {[%clk 0:00:05]}  Bg5 {[%clk 0:00:11]} 63. Kg4 {[%clk 0:00:04]}  Bd8 {[%clk 0:00:11]} 64. Nf4 {[%clk 0:00:04]}  Kf6 {[%clk 0:00:10]} 65. Ne6 {[%clk 0:00:05]}  Be7 {[%clk 0:00:10]} 66. Ng5 {[%clk 0:00:05]}  Ke5 {[%clk 0:00:09]} 67. Nf3+ {[%clk 0:00:05]}  Kf6 {[%clk 0:00:10]} 68. Nxh4 {[%clk 0:00:05]}  Ke5 {[%clk 0:00:09]} 69. Ng6+ {[%clk 0:00:05]}  Kf6 {[%clk 0:00:09]} 70. Nxe7 {[%clk 0:00:06]}  Kxe7 {[%clk 0:00:10]} 71. Kg5 {[%clk 0:00:07]}  Kf7 {[%clk 0:00:11]} 72. f6 {[%clk 0:00:07]}  Kf8 {[%clk 0:00:11]} 73. Kg6 {[%clk 0:00:08]}  Kg8 {[%clk 0:00:12]} 74. h4 {[%clk 0:00:08]}  Kh8 {[%clk 0:00:11]} 75. Kf7 {[%clk 0:00:08]}  Kh7 {[%clk 0:00:12]} 76. Ke7 {[%clk 0:00:08]}  Kg6 {[%clk 0:00:12]} 77. f7 {[%clk 0:00:08]}  Kh6 {[%clk 0:00:13]} 78. f8=Q+ {[%clk 0:00:08]}  Kh5 {[%clk 0:00:14]} 79. Qg8 {[%clk 0:00:07]}  Kxh4 {[%clk 0:00:14]} 80. Kf6 {[%clk 0:00:07]}  Kh3 {[%clk 0:00:15]} 81. Kf5 {[%clk 0:00:08]}  Kh2 {[%clk 0:00:15]} 82. Kf4 {[%clk 0:00:08]}  Kh1 {[%clk 0:00:15]} 83. Kf3 {[%clk 0:00:08]} 1-0


[Site "https://www.chess.com"]

[Event "Titled Tuesday Blitz August 24 2021"]
[White "Pavlov, Danila"]
[Black "Shevtchenko, Olesya"]
[WhiteFideId "34126594"]
[BlackFideId "24131890"]
[WhiteElo "2323"]
[BlackElo "2003"]
[Result "1/2-1/2"]
[Round "03"]
[TimeControl "180+1"]
[Date "2021.08.24"]
[WhiteClock "0:00:36"]
[BlackClock "0:00:19"]

1. e4 {[%clk 0:03:00]}  c5 {[%clk 0:02:59]} 2. Nf3 {[%clk 0:02:57]}  d6 {[%clk 0:02:59]} 3. d4 {[%clk 0:02:56]}  cxd4 {[%clk 0:03:00]} 4. Nxd4 {[%clk 0:02:56]}  Nf6 {[%clk 0:03:01]} 5. Nc3 {[%clk 0:02:57]}  Nc6 {[%clk 0:03:01]} 6. Be3 {[%clk 0:02:57]}  a6 {[%clk 0:02:59]} 7. Nb3 {[%clk 0:02:53]}  e6 {[%clk 0:02:56]} 8. f4 {[%clk 0:02:52]}  Be7 {[%clk 0:02:54]} 9. Qf3 {[%clk 0:02:52]}  Bd7 {[%clk 0:02:48]} 10. O-O-O {[%clk 0:02:51]}  Qc7 {[%clk 0:02:36]} 11. g4 {[%clk 0:02:51]}  d5 {[%clk 0:01:53]} 12. exd5 {[%clk 0:02:39]}  Nxd5 {[%clk 0:01:52]} 13. Rxd5 {[%clk 0:01:53]}  exd5 {[%clk 0:01:53]} 14. Nxd5 {[%clk 0:01:53]}  Qb8 {[%clk 0:01:26]} 15. Nb6 {[%clk 0:01:46]}  Be6 {[%clk 0:01:22]} 16. Nxa8 {[%clk 0:01:42]}  Bxb3 {[%clk 0:01:18]} 17. axb3 {[%clk 0:01:35]}  Qxa8 {[%clk 0:01:18]} 18. Bc4 {[%clk 0:01:32]}  Qc8 {[%clk 0:01:15]} 19. Rd1 {[%clk 0:01:28]}  O-O {[%clk 0:01:12]} 20. Bb6 {[%clk 0:01:16]}  Bd8 {[%clk 0:01:02]} 21. Bc5 {[%clk 0:01:12]}  Be7 {[%clk 0:01:01]} 22. Bxe7 {[%clk 0:01:12]}  Nxe7 {[%clk 0:01:02]} 23. Qe4 {[%clk 0:01:11]}  Nc6 {[%clk 0:00:59]} 24. g5 {[%clk 0:01:09]}  Qg4 {[%clk 0:00:51]} 25. Bd5 {[%clk 0:00:58]}  Rd8 {[%clk 0:00:42]} 26. Re1 {[%clk 0:00:58]}  Qd7 {[%clk 0:00:33]} 27. Bxc6 {[%clk 0:00:48]}  bxc6 {[%clk 0:00:34]} 28. Qe2 {[%clk 0:00:46]}  g6 {[%clk 0:00:33]} 29. Rd1 {[%clk 0:00:44]}  Qc7 {[%clk 0:00:30]} 30. Rxd8+ {[%clk 0:00:43]}  Qxd8 {[%clk 0:00:31]} 31. Qxa6 {[%clk 0:00:43]}  Qd4 {[%clk 0:00:22]} 32. Qf1 {[%clk 0:00:43]}  c5 {[%clk 0:00:20]} 33. Kb1 {[%clk 0:00:42]}  Qe4 {[%clk 0:00:19]} 34. Qf2 {[%clk 0:00:37]}  Qh1+ {[%clk 0:00:17]} 35. Ka2 {[%clk 0:00:35]}  Qa8+ {[%clk 0:00:17]} 36. Kb1 {[%clk 0:00:35]}  Qh1+ {[%clk 0:00:18]} 37. Ka2 {[%clk 0:00:35]}  Qa8+ {[%clk 0:00:18]} 38. Kb1 {[%clk 0:00:36]}  Qh1+ {[%clk 0:00:19]} 1/2-1/2


[Site "https://www.chess.com"]